Cogmind - Beta 17 @@@ ROGUE MODE // 2026.07.15 @ 23:41:33 Player: ae Result: Defending 0bPrime! Performance ------------- Evolutions (8) 4000 Regions Visited (16) 3200 Robots Destroyed (159) 795 Value Destroyed (7478) 7478 Prototype IDs (107) 2140 Alien Tech Used (5) 1000 Bonus (34575) 34575 TOTAL SCORE: 53188 Bonus ------- High Alert Combat Kills 3826 Follower Combat Kills 122 Forged Quantum Companion 1000 Registered with UFD 300 Met Optimus in HQ 500 Met Zhirov 300 Destroyed Superfortress 15000 Met Optimus at Protoforge 1000 Executed Drillbomb Mission 10000 Win 3000 Friendly Fire -473 Cogmind --------- Core Integrity 812/1450 Matter 295/300 Energy 270/270 System Corruption 0% Temperature Cool (0) Movement Flying (20) Location 0bPrime Parts ------- > --- POWER (2) -------- Micro Antimatter Reactor Concept Zero-point Core > --- PROPULSION (8) --- Cooled Nuclear Pulse Thruster Cooled Nuclear Pulse Thruster Impulse Thruster Array Impulse Thruster Array Experimental Surge Thruster Experimental Surge Thruster > --- UTILITY (12) ----- Advanced Heat Sink Medium Storage Unit Plexus Tether Experimental Optical Array Experimental Active Sensor Suite Experimental Targeting Computer Concept Weapon Articulator Advanced Target Analyzer Experimental Core Analyzer Improved Armor Integrity Analyzer Experimental Reaction Control System > --- WEAPON (2) ------- Helical Railgun Quantum Companion > --- INVENTORY (10) --- Micro Antimatter Reactor Impulse Thruster Array Experimental Surge Thruster Advanced Sensor Array Advanced Kinecellerator Advanced Phase Shifter Centrium Light Armor Plating Concept Variable Chargecaster Concept Variable Chargecaster Peak State ------------ > --- POWER ------------ Micro Antimatter Reactor Concept Zero-point Core > --- PROPULSION ------- Cooled Nuclear Pulse Thruster Cooled Nuclear Pulse Thruster Impulse Thruster Array Impulse Thruster Array Experimental Surge Thruster Experimental Surge Thruster > --- UTILITY ---------- Advanced Heat Sink Medium Storage Unit Plexus Tether Experimental Optical Array Experimental Active Sensor Suite Experimental Targeting Computer Concept Weapon Articulator Advanced Target Analyzer Experimental Core Analyzer Improved Armor Integrity Analyzer Experimental Reaction Control System > --- WEAPON ----------- Concept Variable Chargecaster Quantum Companion > --- INVENTORY -------- Micro Antimatter Reactor Cooled Nuclear Pulse Thruster Cooled Nuclear Pulse Thruster Advanced Sensor Array Advanced Kinecellerator Advanced Phase Shifter Centrium Light Armor Plating Concept Variable Chargecaster Helical Railgun [Rating: 213] Favorites ----------- Power Micro Antimatter Reactor Engine Light Deuterium Engine Power Core Concept Zero-point Core Reactor Micro Antimatter Reactor Propulsion Cooled Nuclear Pulse Thruster Treads Light Treads Flight Unit Cooled Nuclear Pulse Thruster Utility Medium Storage Unit Device Experimental Reaction Control System Storage Medium Storage Unit Processor Experimental Targeting Computer Hackware Improved Hacking Suite Protection Centrium Light Armor Plating Weapon Quantum Companion Energy Gun Concept Variable Chargecaster Energy Cannon Heavy Phase Cannon Ballistic Gun Helical Railgun Ballistic Cannon Compact Linear Accelerator Launcher Long-range Missile Launcher Special Weapon Remote Datajack Slashing Weapon Quantum Companion Special Melee Weapon Improved Datajack Build | -11 -10 -10 -7 -7 -5 -5 -5 -5 -5 -5 -4 -4 -3 -2 -2 -2 ------- Run | Yrd Mat Sub Rec Scr Fac Was Fac Upp Upp Zhi Pro Fac Res Res Qua Frg Slots Evolved 16 | . . . . . 10 . . . . . . 2 2 2 . . Power 1 | . . . . . 1 . . . . . . . . . . . Propulsion 6 | . . . . . 4 . . . . . . 1 . 1 . . Utility 9 | . . . . . 5 . . . . . . 1 2 1 . . Weapon . | . . . . . . . . . . . . . . . . . Parts Attached 130 | 5 3 2 2 7 19 . 12 1 2 5 . 11 6 1 1 53 Power 10 | . 1 . . 1 1 . 1 . 1 1 . . 2 . . 2 Engine 3 | . 1 . . 1 . . . . . . . . 1 . . . Core 4 | . . . . . 1 . 1 . 1 . . . . . . 1 Reactor 3 | . . . . . . . . . . 1 . . 1 . . 1 Propulsion 25 | 2 1 . 1 2 3 . 2 1 . 1 . 6 . 1 . 5 Treads 2 | 2 . . . . . . . . . . . . . . . . Leg . | . . . . . . . . . . . . . . . . . Wheel . | . . . . . . . . . . . . . . . . . Hover . | . . . . . . . . . . . . . . . . . Flight 23 | . 1 . 1 2 3 . 2 1 . 1 . 6 . 1 . 5 Utility 72 | 1 1 . 1 1 13 . 7 . 1 3 . 5 4 . 1 34 Device 36 | 1 . . 1 1 6 . 5 . 1 1 . 3 1 . . 16 Storage 2 | . . . . . 1 . 1 . . . . . . . . . Processor 20 | . 1 . . . 3 . . . . . . 1 . . 1 14 Hackware 7 | . . . . . 2 . 1 . . 1 . . 3 . . . Protection 7 | . . . . . 1 . . . . 1 . 1 . . . 4 Artifact . | . . . . . . . . . . . . . . . . . Weapon 23 | 2 . 2 . 3 2 . 2 . . . . . . . . 12 Energy Gun 3 | 1 . . . . . . . . . . . . . . . 2 Energy Cannon 2 | . . 1 . . . . 1 . . . . . . . . . Ballistic Gun 10 | 1 . . . . . . . . . . . . . . . 9 Ballistic Cannon 1 | . . . . . . . . . . . . . . . . 1 Launcher 2 | . . 1 . . . . 1 . . . . . . . . . Special Weapon 1 | . . . . 1 . . . . . . . . . . . . Impact Weapon . | . . . . . . . . . . . . . . . . . Slashing Weapon 2 | . . . . 2 . . . . . . . . . . . . Piercing Weapon . | . . . . . . . . . . . . . . . . . Special Melee Weapon 2 | . . . . . 2 . . . . . . . . . . . Unidentified Prototypes 33 | . . . . 1 1 . 1 . 1 5 . . 1 . . 23 Parts Lost 16 | . . . . . 2 . 2 . 1 . . 4 1 . 1 5 Power 3 | . . . . . . . . . 1 . . 1 . . . 1 Propulsion 6 | . . . . . 1 . 2 . . . . 2 . . . 1 Utility 6 | . . . . . . . . . . . . 1 1 . 1 3 Weapon 1 | . . . . . 1 . . . . . . . . . . . Highest Loss Streak 3 | . . . . . 2 . 1 . 1 . . 3 1 . 1 2 To Critical Strikes . | . . . . . . . . . . . . . . . . . Average Backups 8 | . 4 4 5 4 5 9 9 9 9 9 10 9 9 9 10 9 Power . | . . . . . . 1 1 1 . . . . . 1 1 1 Propulsion 1 | . . . . 1 . 2 1 1 2 3 4 . . 2 2 2 Utility 2 | . 2 3 3 2 2 3 3 4 3 2 2 5 3 2 2 2 Weapon 2 | . 1 1 2 1 1 2 1 1 2 2 1 1 1 1 1 2 Tool/Special . | . . . . . . . . . . . . . . . . . Unused Backups 23 | . . . . 3 2 . 4 . . 1 . . 2 . 3 8 Power 3 | . . . . . . . 1 . . . . . . . . 2 Propulsion 7 | . . . . . . . 2 . . 1 . . . . . 4 Utility 10 | . . . . 3 1 . 1 . . . . . 2 . 2 1 Weapon 1 | . . . . . 1 . . . . . . . . . . . Tool/Special 2 | . . . . . . . . . . . . . . . 1 1 Average Slot Usage (%) 89 | . 64 57 60 87 79 82 86 92 89 92 94 94 93 88 89 90 Reactor 7 | . . . . . . . . . . . . . 3 4 4 7 Flight 24 | . 5 14 17 28 22 23 21 27 27 27 27 29 27 24 25 25 Device 13 | . 14 14 17 28 19 17 16 11 14 17 22 15 19 22 23 12 Storage 3 | . . . . . . 5 5 5 5 5 5 5 4 4 4 4 Processor 25 | . 8 14 10 . 5 5 5 5 5 5 5 9 8 4 4 27 Protection 3 | . . . . . 2 . . . . . . 4 3 4 4 3 Ballistic Gun 3 | . 14 12 14 6 . . . . . . . . . . . 3 Slashing Weapon 3 | . . . . 9 5 5 5 5 5 5 5 5 4 4 4 3 Peak Build Rating 213 | 5 8 6 9 26 75 71 84 80 78 97 94 119 128 135 138 213 Average Rating 187 | 3 5 5 6 19 57 70 77 77 73 85 91 109 123 131 136 198 On Entrance 65 | . 4 5 5 9 26 70 71 75 77 78 91 91 108 123 135 137 Avg Prop Armor Cover (%) 22 | 29 29 . . . . . 7 . . . . . . . . 10 Naked Turns . | . . . . . . . . . . . . . . . . . Heaviest Build 56 | 3 3 4 4 14 33 33 33 36 28 30 30 47 49 52 52 56 Greatest Support 68 | 3 4 4 9 14 37 37 43 37 37 39 39 60 49 56 56 68 Greatest Overweight (x) 16 | . . . . . . . 1 . . . . . . . . 16 Average Overweight (x) . | . . . . . . . . . . . . . . . . . Largest Inventory Capacity 15 | 5 5 5 5 5 15 15 15 10 10 10 10 10 10 10 10 10 Average Capacity 9 | 5 5 5 5 5 5 15 10 10 10 10 10 10 10 10 10 10 Most Carried 13 | 3 5 5 5 5 10 12 13 10 10 10 10 10 10 10 10 10 Average Carried 9 | . 4 4 5 4 5 10 9 9 9 9 10 9 9 9 9 9 Final Capacity 15 | 5 5 5 5 5 15 15 10 10 10 10 10 10 10 10 10 10 Final Carried 12 | 3 5 5 5 5 10 12 9 10 9 10 10 9 10 10 10 10 Class Distribution -------------------- 86% | Scavenger-Scout 3% | Hacker-Scout Dominant Class ---------------- Mutant | -10/Materials Mutant | -10/Subcaves Mutant | -7/Recycling Mutant | -7/Scraptown Hacker-Scout | -5/Factory Hacker-Scout | -5/Waste Hacker-Scout | -5/Factory Hacker-Scout | -5/Upper Caves Hacker-Scout | -5/Upper Caves Hacker-Scout | -5/Zhirov Hacker-Scout | -4/Proximity Caves Hacker-Scout | -4/Factory Hacker-Scout | -3/Research Hacker-Ninja | -2/Research Hacker-Ninja | -2/Quarantine Scavenger-Scout | -2/Protoforge Resources | -11 -10 -10 -7 -7 -5 -5 -5 -5 -5 -5 -4 -4 -3 -2 -2 -2 ----------- Run | Yrd Mat Sub Rec Scr Fac Was Fac Upp Upp Zhi Pro Fac Res Res Qua Frg Matter Collected 5878 | 264 110 89 . . 399 . 168 214 89 110 . 322 112 71 . 3930 Remotely 30 | . . . . . . . . . . . . . . . . 30 Salvage Created 8772 | 165 192 55 . . 602 . 159 87 65 395 . 347 48 115 . 6542 Parts 419 | 16 7 5 . . 35 . 11 5 . 5 . 28 5 5 . 297 Haulers Intercepted 4 | . . . . . 3 . . . . . . . . . . 1 Recyclers Shooed 3 | . 3 . . . . . . . . . . . . . . . Parts Field Recycled . | . . . . . . . . . . . . . . . . . Retrieved Matter . | . . . . . . . . . . . . . . . . . Parts Self-Destructed 20 | . . 5 . . . . . 2 12 1 . . . . . . Prevented 1 | . . . . . . . . . . . 1 . . . . . Parts Restored . | . . . . . . . . . . . . . . . . . Kills | -11 -10 -10 -7 -7 -5 -5 -5 -5 -5 -5 -4 -4 -3 -2 -2 -2 ------- Run | Yrd Mat Sub Rec Scr Fac Was Fac Upp Upp Zhi Pro Fac Res Res Qua Frg Combat Hostiles Destroyed 113 | . 2 5 . . 1 . 4 4 . . . 5 . 1 . 91 Melee 11 | . . . . . 1 . . . . . . . . 1 . 9 Guns 82 | . 2 . . . . . . . . . . . . . . 80 Cannons 3 | . . 1 . . . . . . . . . . . . . 2 AOE 17 | . . 4 . . . . 4 4 . . . 5 . . . . Classes Destroyed 23 | 2 1 2 . . 7 . . . . . . . . . . 11 Worker 2 | . . . . . 2 . . . . . . . . . . . Builder 5 | . . . . . 3 . . . . . . 1 1 . . . Tunneler 6 | 5 . . . . . . 1 . . . . . . . . . Hauler 5 | . . . . . 3 . . . . . . . . . . 2 Recycler 4 | 1 2 . . . . . . . . . . 1 . . . . Mechanic 9 | . . . . . 1 . . . . . . 1 . . . 7 Operator 5 | . . . . . 1 . 1 . . . . 2 1 . . . Drone 15 | . . . . . . . . . . . . . . . . 15 Turret 1 | . . 1 . . . . . . . . . . . . . . Watcher 10 | . . . . . 4 . 3 . . . . 1 . 2 . . Swarmer 28 | . 2 4 . . . . 4 4 . . . 5 . 1 . 8 Saboteur 2 | . . . . . . . . . . . . . . . . 2 Grunt 11 | . . . . . . . . . . . . . . . . 11 Brawler 7 | . . . . . . . . . . . . . . . . 7 Duelist 4 | . . . . . . . . . . . . . . . . 4 Protector 8 | . . . . . . . . . . . . . . . . 8 Sentry 2 | . . . . . . . . . . . . . . . . 2 Hunter 5 | . . . . . . . . . . . . . . . . 5 Programmer 12 | . . . . . 1 . . . . . . . . . . 11 Striker 10 | . . . . . . . . . . . . . . . . 10 Executioner 6 | . . . . . . . . . . . . . . . . 6 Subdweller 1 | . . 1 . . . . . . . . . . . . . . Scrapoid 3 | . . . . . . . . . . . . . . . . 3 Decomposer 2 | . . . . . . . . 2 . . . . . . . . Best Kill Streak 10 | 6 2 4 . . 3 . 4 4 . . . 5 1 3 . 10 Combat Bots Only 8 | . 2 4 . . 1 . 4 4 . . . 5 . 1 . 8 Max Kills in Single Turn 4 | 1 1 3 . . 1 . 2 3 . . . 4 1 1 . 2 Gunslinging 1 | . . . . . . . . . . . . . . . . 1 Exploded 4 | . . 3 . . . . 2 3 . . . 4 . . . . Melee 1 | . . . . . 1 . . . . . . . . 1 . 1 Uniques/NPCs Destroyed . | . . . . . . . . . . . . . . . . . Combat | -11 -10 -10 -7 -7 -5 -5 -5 -5 -5 -5 -4 -4 -3 -2 -2 -2 -------- Run | Yrd Mat Sub Rec Scr Fac Was Fac Upp Upp Zhi Pro Fac Res Res Qua Frg Hostile Shots Fired 252 | . 4 13 . . 9 . 33 5 5 . . 44 . 7 6 126 Missed 159 | . 2 6 . . 3 . 17 3 3 . . 21 . 4 3 97 Deflected 1 | . . . . . . . . . . . . . . . . 1 Hits 93 | . 2 7 . . 6 . 16 2 2 . . 23 . 3 3 29 Melee 3 | . . . . . . . . . . . . . . . . 3 Projectile 90 | . 2 7 . . 6 . 16 2 2 . . 23 . 3 3 26 AOE 1 | . . . . . . . 1 . . . . . . . . . Critical Strikes 8 | . . . . . . . . . . . . 2 . . 1 5 Actively Blocked 6 | . . . . . . . . . . . . . . . 1 5 Damage Taken 2982 | . 16 106 . . 154 . 304 28 64 16 . 507 . 70 49 1668 Core 782 | . . 27 . . 78 . 68 12 34 16 . . . 25 . 522 Absorbed by Shields 30 | . . . . . . . . . . . . . . . . 30 Redirected to Shielding 6 | . . . . . 6 . . . . . . . . . . . Regen/Repaired (Parts) 255 | . . . . . . . 33 . . . . . 222 . . . Core Remaining (%) 87 | 100 . . . 89 . . . . . . 79 100 100 . . 56 Volleys Fired 609 | 13 16 14 4 . . . 10 3 . . 4 33 . 1 3 508 Largest 2 | 2 2 1 1 . . . 1 1 . . 1 1 . 1 1 2 Hottest 285 | 60 60 80 20 . . . 90 90 . . 90 90 . 90 90 285 Shots Fired 826 | 17 20 14 4 . . . 9 3 . . 4 33 . 1 3 718 Gun 758 | 17 20 1 4 . . . . . . . . . . . . 716 Cannon 49 | . . 2 . . . . 6 1 . . 4 30 . 1 3 2 Launcher 19 | . . 11 . . . . 3 2 . . . 3 . . . . Special . | . . . . . . . . . . . . . . . . . Kinetic 619 | 13 16 1 4 . . . . . . . . . . . . 585 Thermal 188 | 4 4 2 . . . . 6 1 . . 4 30 . 1 3 133 Explosive 19 | . . 11 . . . . 3 2 . . . 3 . . . . Electromagnetic . | . . . . . . . . . . . . . . . . . Robot Hit Streak 43 | 7 4 4 3 . . . . . . . . . . . . 43 Robot Miss Streak 3 | 1 3 2 1 . . . . . . . . . . . . 2 Penetration Max 2 | . . . . . . . . . . . . . . . . 2 Secondary Targets 12 | . . . . . . . . . . . . . . . . 12 Max Gunslinging Chain 1 | . . . . . . . . . . . . . . . . 1 Autonomous 3 | . . . . . . . . . . . . . . . . 3 Shots Hit Robots 550 | 13 10 4 3 . 36 . 9 2 1 11 . 7 4 3 1 446 Core Hits 276 | 7 5 11 1 . 13 . 9 5 1 4 . 9 2 3 1 205 Critical Kills 24 | . . . . . . . . . . . . . . . . 24 Critical Parts Destroyed 23 | . . . . . . . . . . . . . . . . 23 Critical Strikes 52 | . . . . . 2 . . . . . . . . . . 50 Destroy 49 | . . . . . . . . . . . . . . . . 49 Blast 1 | . . . . . . . . . . . . . . . . 1 Melee Attacks 285 | . . . . . 72 . 56 6 7 11 2 37 20 12 11 51 Impact . | . . . . . . . . . . . . . . . . . Slashing 273 | . . . . . 68 . 50 6 7 11 2 35 20 12 11 51 Piercing . | . . . . . . . . . . . . . . . . . Sneak Attacks 39 | . . . . . 11 . 5 2 . . . 6 1 . . 14 Combat Hostiles . | . . . . . . . . . . . . . . . . . Follow-up Attacks 1 | . . . . . . . . . . 1 . . . . . . Damage Inflicted 24026 | 159 133 390 36 . 1952 . 748 527 50 955 . 1097 266 155 44 17514 Guns 15658 | 159 133 . 36 . . . . . . . . . . . . 15330 Cannons 378 | . . 50 . . . . . . . . . . . . . 328 Explosions 1613 | . . 340 . . . . 374 358 . . . 541 . . . . Melee 6377 | . . . . . 1952 . 374 169 50 955 . 556 266 155 44 1856 Ramming . | . . . . . . . . . . . . . . . . . Kinetic 15589 | 138 133 . 36 . . . . . . . . . . . . 15282 Thermal 265 | 21 . 50 . . . . . . . . . 84 . . . 110 Explosive 1529 | . . 340 . . . . 374 358 . . . 457 . . . . Electromagnetic . | . . . . . . . . . . . . . . . . . Impact . | . . . . . . . . . . . . . . . . . Slashing 6377 | . . . . . 1952 . 374 169 50 955 . 556 266 155 44 1856 Piercing . | . . . . . . . . . . . . . . . . . Phasic 266 | . . . . . . . . . . . . . . . . 266 Highest Corruption 11 | . . . . . 1 10 11 1 1 . . 1 . . . . Average Corruption 3 | . . . . . 1 4 7 1 1 . . 1 . . . . Corruption Purged 14 | . . . . . . . 13 . 1 . . . . . . . Corruption Blocked . | . . . . . . . . . . . . . . . . . Effects 27 | . . . . . 4 1 17 1 3 . . 1 . . . . Message Errors 9 | . . . . . 3 . 4 1 1 . . . . . . . Matter Fused 3 | . . . . . . . 3 . . . . . . . . . Heat Flow Errors 1 | . . . . . . . 1 . . . . . . . . . Energy Discharges 4 | . . . . . . . 3 . . . . 1 . . . . Parts Rejected 1 | . . . . . . 1 . . . . . . . . . . Data Loss (minor) 4 | . . . . . 1 . 3 . . . . . . . . . Data Loss (major) 4 | . . . . . . . 2 . 2 . . . . . . . Weapon Failures 1 | . . . . . . . 1 . . . . . . . . . Overload Shots 127 | . . . . . . . . . . . . . . . . 127 Effects 5 | . . . . . . . . . . . . . . . . 5 Energy Bleed 3 | . . . . . . . . . . . . . . . . 3 Heat Surge 1 | . . . . . . . . . . . . . . . . 1 Short Circuit 1 | . . . . . . . . . . . . . . . . 1 Overflow Damage 2012 | . . . . . 285 . 177 101 . 307 . 289 75 . . 778 Projectiles 79 | . . . . . . . . . . . . . . . . 79 Explosions 260 | . . . . . . . 56 20 . . . 184 . . . . Melee 1673 | . . . . . 285 . 121 81 . 307 . 105 75 . . 699 Knockbacks . | . . . . . . . . . . . . . . . . . Impact . | . . . . . . . . . . . . . . . . . Kinetic . | . . . . . . . . . . . . . . . . . Secondary . | . . . . . . . . . . . . . . . . . Self-Inflicted Damage 31 | . . 31 . . . . . . . . . . . . . . Shots 1 | . . 1 . . . . . . . . . . . . . . Rammed . | . . . . . . . . . . . . . . . . . Targets Rammed . | . . . . . . . . . . . . . . . . . Kicked . | . . . . . . . . . . . . . . . . . Crushed . | . . . . . . . . . . . . . . . . . Highest Temperature 340 | 15 . 2 . . . . 280 54 . . . 162 . . . 340 Average Temperature 77 | 10 . 2 . . . . 66 20 . . . 50 . . . 92 Received Heat Transfer 132 | . . 27 . . . . 21 . 9 . . 9 . . . 66 Effects 1 | . . . . . . . . . . . . . . . . 1 Energy Bleed 1 | . . . . . . . . . . . . . . . . 1 Siege Activations . | . . . . . . . . . . . . . . . . . Martial Activations . | . . . . . . . . . . . . . . . . . Shielding Activations . | . . . . . . . . . . . . . . . . . Robots Disrupted 2 | . . . . . . . 1 . . . . . . . . 1 Combat Hostiles . | . . . . . . . . . . . . . . . . . Robots Corrupted . | . . . . . . . . . . . . . . . . . Combat Hostiles . | . . . . . . . . . . . . . . . . . Parts Fried . | . . . . . . . . . . . . . . . . . Impact Corruptions . | . . . . . . . . . . . . . . . . . Robots Melted . | . . . . . . . . . . . . . . . . . Combat Hostiles . | . . . . . . . . . . . . . . . . . Parts Melted 8 | . . 1 . . . . . . . . . . . . . 7 Heat Transferred 261 | 50 . 74 . . . . . . . . . 50 . . . 87 Parts Sabotaged . | . . . . . . . . . . . . . . . . . Parts Stolen . | . . . . . . . . . . . . . . . . . Parts Stripped . | . . . . . . . . . . . . . . . . . Power Chain Reactions . | . . . . . . . . . . . . . . . . . Alert | -11 -10 -10 -7 -7 -5 -5 -5 -5 -5 -5 -4 -4 -3 -2 -2 -2 ------- Run | Yrd Mat Sub Rec Scr Fac Was Fac Upp Upp Zhi Pro Fac Res Res Qua Frg Maximum Alert Level 5 | . . . . . 1 . 1 . . . . 1 . . . 5 Low Security (%) 6 | 100 100 . 100 . 44 100 49 . . . . 55 100 100 100 2 Level 1 3 | . . . . . 55 . 50 . . . . 44 . . . 2 Level 2 . | . . . . . . . . . . . . . . . . . Level 3 . | . . . . . . . . . . . . . . . . . Level 4 . | . . . . . . . . . . . . . . . . . Level 5 88 | . . . . . . . . . . . . . . . . 93 High Security . | . . . . . . . . . . . . . . . . . Max Security . | . . . . . . . . . . . . . . . . . Peak Influence 3120 | 10 59 . 64 . 356 116 398 . . . . 288 127 94 133 3120 Initial 116 | . 6 . 64 . . 116 60 . . . . . 111 20 52 74 Average 2242 | 3 24 . 33 . 180 107 186 . . . . 113 91 33 67 2367 Influence Increases 6633 | 30 84 310 . . 656 . 632 90 80 10 . 484 76 124 191 3866 Destroy 0b10 Robot/C 1900 | . 40 100 . . 120 . 80 80 . . . 100 . 20 . 1360 Destroy 0b10 Robot/NC 355 | 30 10 . . . 75 . 20 . 5 10 . 30 10 10 . 155 Destroy Leader 296 | . 10 . . . 54 . 16 10 . . . 12 . 4 . 190 Allied During Kill 11 | . . . . . 11 . . . . . . . . . . . Successful Hack 259 | . 9 . . . 14 . 51 . . . . 50 34 18 26 57 Disable Machine 360 | . . . . . 60 . 60 . . . . 15 . . 30 195 Anti-Garrison Action 150 | . . . . . . . . . . . . . . . . 150 Destroy Structure 1157 | . . . . . 232 . 120 . . . . 172 32 12 30 559 Partial Spotted 315 | . . . . . 30 . 60 . . . . 15 . 60 . 150 Lose Combat Pursuer 1830 | . 15 210 . . 60 . 225 . 75 . . 90 . . 105 1050 Influence Decreases 3513 | 20 65 205 134 . 322 248 498 132 154 114 . 272 251 67 152 879 Entered New Map 772 | . 4 15 70 . . 218 26 82 34 104 . . 101 17 42 59 Time Decay 2421 | 20 61 190 64 . 282 10 342 50 110 10 . 222 140 50 100 770 Search Patrol Dispatched 100 | . . . . . . . 100 . . . . . . . . . Lost Part 160 | . . . . . 20 . 20 . 10 . . 40 10 . 10 50 Lost Ally 60 | . . . . . 20 20 10 . . . . 10 . . . . Squads Dispatched 60 | . . . . . 13 . 14 . 1 . . 15 2 1 2 12 Investigation 33 | . . . . . 7 . 9 . . . . 8 1 1 . 7 Extermination 11 | . . . . . 3 . 2 . . . . 3 1 . 2 . Reinforcement 12 | . . . . . 3 . 3 . . . . 1 . . . 5 Assault 1 | . . . . . . . . . 1 . . . . . . . Garrison 3 | . . . . . . . . . . . . 3 . . . . Intercept . | . . . . . . . . . . . . . . . . . Searches Triggered 1 | . . . . . . . 1 . . . . . . . . . Construction Impeded 1 | . . . . . 1 . . . . . . . . . . . Haulers Reinforced . | . . . . . . . . . . . . . . . . . Active Scanning Responses . | . . . . . . . . . . . . . . . . . Cargo Convoy Interrupts . | . . . . . . . . . . . . . . . . . Stealth | -11 -10 -10 -7 -7 -5 -5 -5 -5 -5 -5 -4 -4 -3 -2 -2 -2 --------- Run | Yrd Mat Sub Rec Scr Fac Was Fac Upp Upp Zhi Pro Fac Res Res Qua Frg Distress Signals 109 | . . . . . . . 1 . . . . 1 . 2 1 104 Communications Jammed . | . . . . . . . . . . . . . . . . . Distress Signals . | . . . . . . . . . . . . . . . . . Times Spotted 451 | . 4 11 . . 16 3 37 4 6 . . 29 2 11 14 314 Peak Tracking Total 12 | . 4 4 . . 7 4 9 4 6 . . 10 1 5 9 12 Tactical Retreats 61 | . 1 3 . . 1 . 5 . 2 . . 5 . 1 5 38 ECM-based Alert Blocks 28 | . . . . . . . 11 . . . . 10 . 1 6 . Traps | -11 -10 -10 -7 -7 -5 -5 -5 -5 -5 -5 -4 -4 -3 -2 -2 -2 ------- Run | Yrd Mat Sub Rec Scr Fac Was Fac Upp Upp Zhi Pro Fac Res Res Qua Frg Traps Triggered 10 | . . . . . 2 . 2 . . . . 1 . . . 5 Indirectly . | . . . . . . . . . . . . . . . . . Trap Hack Attempts 1 | . . . . . 1 . . . . . . . . . . . Triggered . | . . . . . . . . . . . . . . . . . Disarmed . | . . . . . . . . . . . . . . . . . Reprogrammed . | . . . . . . . . . . . . . . . . . Reused 1 | . . 1 . . . . . . . . . . . . . . Traps Extracted . | . . . . . . . . . . . . . . . . . Installed 1 | . . 1 . . . . . . . . . . . . . . Triggered . | . . . . . . . . . . . . . . . . . Most Traps Carried 1 | . . 1 . . . . . . . . . . . . . . Machines | -11 -10 -10 -7 -7 -5 -5 -5 -5 -5 -5 -4 -4 -3 -2 -2 -2 ---------- Run | Yrd Mat Sub Rec Scr Fac Was Fac Upp Upp Zhi Pro Fac Res Res Qua Frg Machines Disabled 32 | . . 3 . . 4 . 4 . . . 1 1 . . 2 17 Max in Single Turn 3 | . . 3 . . 1 . 2 . . . 1 1 . . 1 1 Garrison Access 6 | . . . . . 1 . 1 . . . . 1 1 . 1 1 Machines Repaired . | . . . . . . . . . . . . . . . . . Machines Dismantled . | . . . . . . . . . . . . . . . . . Machines Sabotaged . | . . . . . . . . . . . . . . . . . Overloaded Fab Kills . | . . . . . . . . . . . . . . . . . Hacking | -11 -10 -10 -7 -7 -5 -5 -5 -5 -5 -5 -4 -4 -3 -2 -2 -2 --------- Run | Yrd Mat Sub Rec Scr Fac Was Fac Upp Upp Zhi Pro Fac Res Res Qua Frg Machines Accessed 97 | . 4 . 5 7 14 . 19 . . 5 1 17 5 3 6 11 Terminals 41 | . 3 . 4 . 4 . 8 . . . 1 6 1 3 4 7 Fabricators . | . . . . . . . . . . . . . . . . . Repair Stations 4 | . . . . . 2 . 1 . . . . . 1 . . . Recycling Units 28 | . 1 . . . 7 . 8 . . . . 8 1 . . 3 Scanalyzers 5 | . . . . . . . 1 . . . . 2 1 . 1 . Garrison Access 6 | . . . . . 1 . 1 . . . . 1 1 . 1 1 Total Hacks 259 | . 6 . 11 46 29 . 47 . . 18 4 32 14 8 13 31 Successful 157 | . 5 . 5 46 11 . 24 . . 18 4 18 8 3 4 11 Failed 101 | . 1 . 6 . 18 . 23 . . . . 13 6 5 9 20 Catastrophic 16 | . . . . . 3 . 4 . . . . 2 . 1 2 4 Database Lockouts 1 | . . . . . . . . . . . . 1 . . . . Manual 109 | . 3 . 4 . 21 . 32 . . . . 22 3 5 8 11 Terminals 107 | . 5 . 10 . 9 . 27 . . . 4 11 4 8 9 20 Fabricators . | . . . . . . . . . . . . . . . . . Repair Stations 10 | . . . . . 5 . 2 . . . . . 3 . . . Recycling Units 45 | . 1 . . . 12 . 11 . . . . 11 2 . . 8 Scanalyzers 18 | . . . . . . . 5 . . . . 9 2 . 2 . Garrison Access 14 | . . . . . 3 . 2 . . . . 1 3 . 2 3 Terminal Hacks 85 | . 3 . 3 46 . . 3 . . 18 4 . 1 1 . 6 Record 52 | . . . 1 36 . . . . . 6 4 . . . . 5 Part Schematic 4 | . . . . . . . . . . 4 . . . . . . Robot Analysis 12 | . . . . 8 . . . . . 4 . . . . . . Prototype ID Bank 4 | . . . . . . . . . . 4 . . . . . . Open Door 1 | . . . . 1 . . . . . . . . . . . . Level Access Points 2 | . . . . . . . 1 . . . . . . . . 1 Branch Access Points 1 | . . . . . . . . . . . . . . 1 . . Machine Index 1 | . . . . . . . . . . . . . 1 . . . Patrol Status 1 | . . . 1 . . . . . . . . . . . . . Recall Extermination 1 | . . . . . . . 1 . . . . . . . . . Recall Reinforcements 1 | . . . . . . . 1 . . . . . . . . . Hauler Manifests 2 | . 1 . 1 . . . . . . . . . . . . . Zone Layout 2 | . 2 . . . . . . . . . . . . . . . Proto ID Catalog 1 | . . . . 1 . . . . . . . . . . . . Fabricator Hacks . | . . . . . . . . . . . . . . . . . Repair Station Hacks 4 | . . . . . . . 2 . . . . . 2 . . . Scan Component 2 | . . . . . . . 1 . . . . . 1 . . . Repair 2 | . . . . . . . 1 . . . . . 1 . . . Recycling Unit Hacks 1 | . 1 . . . . . . . . . . . . . . . Retrieve Components 1 | . 1 . . . . . . . . . . . . . . . Scanalyzer 9 | . . . . . . . 2 . . . . 4 2 . 1 . Insert Component 1 | . . . . . . . . . . . . 1 . . . . Retrieve Study 8 | . . . . . . . 2 . . . . 3 2 . 1 . Garrison Access Hacks 5 | . . . . . 1 . 1 . . . . 1 1 . 1 . Seal Access 5 | . . . . . 1 . 1 . . . . 1 1 . 1 . Unauthorized Hacks 53 | . 1 . 2 . 10 . 16 . . . . 13 2 2 2 5 Terminals 28 | . 1 . 2 . 3 . 8 . . . . 5 1 2 2 4 Track 2 | . . . . . . . . . . . . 1 . . . 1 Assimilate 3 | . . . . . . . 1 . . . . 2 . . . . Botnet 21 | . 1 . 2 . 3 . 5 . . . . 2 1 2 2 3 Disrupt 1 | . . . . . . . 1 . . . . . . . . . Operators 1 | . . . . . . . 1 . . . . . . . . . Fabricators . | . . . . . . . . . . . . . . . . . Repair Stations . | . . . . . . . . . . . . . . . . . Recycling Units 25 | . . . . . 7 . 8 . . . . 8 1 . . 1 Fedlink 25 | . . . . . 7 . 8 . . . . 8 1 . . 1 Scanalyzers . | . . . . . . . . . . . . . . . . . Garrison Access . | . . . . . . . . . . . . . . . . . Data Cores Recovered 3 | . . . . . . . . . . . . 2 1 . . . Used . | . . . . . . . . . . . . . . . . . Hacking Detections 52 | . 3 . 3 . 8 . 9 . . . 1 5 3 3 6 11 Full Trace Events 4 | . . . . . . . 1 . . . . . . 1 . 2 Feedback Events 1 | . . . . . . . 1 . . . . . . . . . Corruption 1 | . . . . . . . 1 . . . . . . . . . Feedback Blocked . | . . . . . . . . . . . . . . . . . Robot Schematics Acquired 1 | . . . . . . . . . . . . . . . . 1 Robots Built . | . . . . . . . . . . . . . . . . . Authchips . | . . . . . . . . . . . . . . . . . Time . | . . . . . . . . . . . . . . . . . Total Robot Build Rating . | . . . . . . . . . . . . . . . . . Part Schematics Acquired 5 | . . . . . . . . . . 4 . . . . . 1 Parts Built . | . . . . . . . . . . . . . . . . . Authchips . | . . . . . . . . . . . . . . . . . Time . | . . . . . . . . . . . . . . . . . Total Part Build Rating . | . . . . . . . . . . . . . . . . . Part Studies Acquired 8 | . . . . . . . 2 . . . . 3 2 . 1 . Parts Repaired 2 | . . . . . . . 1 . . . . . 1 . . . Time 50 | . . . . . . . 28 . . . . . 22 . . . Parts Recycled . | . . . . . . . . . . . . . . . . . Recycled Matter . | . . . . . . . . . . . . . . . . . Retrieved Matter . | . . . . . . . . . . . . . . . . . Retrieved Components 1 | . 1 . . . . . . . . . . . . . . . Parts Scanalyzed . | . . . . . . . . . . . . . . . . . Part Schematics Acquired . | . . . . . . . . . . . . . . . . . Parts Damaged . | . . . . . . . . . . . . . . . . . Bothacking | -11 -10 -10 -7 -7 -5 -5 -5 -5 -5 -5 -4 -4 -3 -2 -2 -2 ------------ Run | Yrd Mat Sub Rec Scr Fac Was Fac Upp Upp Zhi Pro Fac Res Res Qua Frg Used RIF Installer . | . . . . . . . . . . . . . . . . . Robots Hacked 3 | . . . . . 1 . 1 . . . . 1 . . . . Non-combat 3 | . . . . . 1 . 1 . . . . 1 . . . . Combat . | . . . . . . . . . . . . . . . . . Robot Hacks Applied 3 | . . . . . 1 . 1 . . . . 1 . . . . parse_system 1 | . . . . . . . 1 . . . . . . . . . find_chute 2 | . . . . . 1 . . . . . . 1 . . . . Relay Couplers Released 1 | . . . . . . . . . . . . . . . . 1 Machine Destruction 1 | . . . . . . . . . . . . . . . . 1 Fabnet Peak Effective % . | . . . . . . . . . . . . . . . . . Robots Rewired 2 | . . . . . 1 . 1 . . . . . . . . . Allies Hacked . | . . . . . . . . . . . . . . . . . Hacks Repelled . | . . . . . . . . . . . . . . . . . Allies | -11 -10 -10 -7 -7 -5 -5 -5 -5 -5 -5 -4 -4 -3 -2 -2 -2 -------- Run | Yrd Mat Sub Rec Scr Fac Was Fac Upp Upp Zhi Pro Fac Res Res Qua Frg Total Allies 5 | . . . . . 1 1 2 . . . . 1 . . . . Largest Group 1 | . . . . . 1 1 1 . . . . 1 . . . . Highest-Rated Group 49 | . . . . . 49 31 11 . . . . 26 . . . . Highest-Rated Ally 49 | . . . . . 49 31 11 . . . . 26 . . . . Initial UFD Resources 121 | . . . . . 38 62 62 78 78 78 80 80 109 121 121 121 Total Orders . | . . . . . . . . . . . . . . . . . Ally Attacks 19 | . . . . . 18 1 . . . . . . . . . . Total Damage 959 | . . . . . 959 . . . . . . . . . . . Kills 6 | . . . . . 6 . . . . . . . . . . . Allies Corrupted . | . . . . . . . . . . . . . . . . . Allies Melted 30 | . . . . . . . . . . . . . . . . 30 Intel | -11 -10 -10 -7 -7 -5 -5 -5 -5 -5 -5 -4 -4 -3 -2 -2 -2 ------- Run | Yrd Mat Sub Rec Scr Fac Was Fac Upp Upp Zhi Pro Fac Res Res Qua Frg Active Infowar (turns) 57537 | 35 199 386 141 730 709 23 775 119 223 104 80 589 292 116 214 52802 Optics 52798 | . . . . . . . . . . . . . . . . 52798 Sensors 40477 | . . . 4 208 709 23 771 119 220 104 80 582 287 116 214 37040 A.S.S. 2650 | . . . . . . . . . . . . . . . . 2650 Structural 3167 | . . . . . 663 23 598 119 223 99 80 488 292 116 214 252 Seismic 3308 | 35 199 386 141 730 709 23 532 . 141 88 80 244 . . . . Machine Analysis 816 | . . . . . . . . . . . . 537 279 . . . Jamming 51 | . . . . . . . . . . . . 49 . . . 2 ECM 346 | . . . . . . . 41 . . . . 56 7 116 126 . Robot Analysis Total 12 | . . . . 8 . . . . . 4 . . . . . . Derelict Logs Recovered 4 | . . . . 1 . . . 1 . . 2 . . . . . Drone Launches . | . . . . . . . . . . . . . . . . . Drone Recoveries . | . . . . . . . . . . . . . . . . . Exploration | -11 -10 -10 -7 -7 -5 -5 -5 -5 -5 -5 -4 -4 -3 -2 -2 -2 ------------- Run | Yrd Mat Sub Rec Scr Fac Was Fac Upp Upp Zhi Pro Fac Res Res Qua Frg Turns Passed 57574 | 73 199 386 141 730 709 23 775 119 223 104 80 589 292 116 214 52801 Spaces Moved 20753 | 66 210 652 338 1530 1573 71 1612 321 640 218 220 1505 818 355 587 10037 Core 353 | 66 158 . . . . . . . . . . . . . . 129 Treads . | . . . . . . . . . . . . . . . . . Legs . | . . . . . . . . . . . . . . . . . Wheels . | . . . . . . . . . . . . . . . . . Hover . | . . . . . . . . . . . . . . . . . Flight 20400 | . 52 652 338 1530 1573 71 1612 321 640 218 220 1505 818 355 587 9908 Fastest Speed 6 | 50 40 40 34 34 29 29 29 27 27 27 27 6 21 21 21 6 Average Speed 31 | 50 47 40 38 41 30 29 30 27 27 27 27 23 21 21 21 32 Slowest Speed 850 | 50 60 40 40 44 37 29 112 31 27 27 27 27 21 21 21 850 Overloaded Moves 71 | . . . . . . . . . . . . 5 . . . 66 Propulsion Burnouts . | . . . . . . . . . . . . . . . . . Robots Hopped 118 | . 1 . 9 . 5 . 6 . . . . 12 4 1 12 68 Potential Cave-ins 7 | . . . . . . . . . . . . 5 . . . 2 Cave-ins Triggered . | . . . . . . . . . . . . . . . . . Teleports 1 | . . . . . . . . . . . . . . . . 1 Exploration Rate (%) 55 | 5 53 34 98 88 44 84 49 58 84 60 44 51 26 11 77 72 Regions Visited 16 Branch Regions 9 Pre-discovered Areas 10 | . . . . 4 1 . . . . 3 2 . . . . . Known Exits Taken 9 | . . . . . . . 1 1 1 1 1 1 1 1 1 . Unknown Exits Taken 5 | 1 1 1 1 1 . . . . . . . . . . . . Scrap Searched 8 | . . . . 3 . . . 3 2 . . . . . . . Spaces Dug 244 | . . . . . 25 . 45 4 5 . 3 36 16 3 10 97 Terrain Destroyed 490 | . . 44 . . 25 . 68 25 5 . 5 114 16 4 11 173 Melee 151 | . . . . . 25 . 43 4 5 . 2 28 16 3 8 17 Projectile 199 | . . . . . . . 6 . . . 3 30 . 1 3 156 AOE 140 | . . 44 . . . . 19 21 . . . 56 . . . . Terrain Rammed . | . . . . . . . . . . . . . . . . . Walls Destroyed . | . . . . . . . . . . . . . . . . . Machines Disabled . | . . . . . . . . . . . . . . . . . Actions | -11 -10 -10 -7 -7 -5 -5 -5 -5 -5 -5 -4 -4 -3 -2 -2 -2 --------- Run | Yrd Mat Sub Rec Scr Fac Was Fac Upp Upp Zhi Pro Fac Res Res Qua Frg Total 70436 | 86 288 759 335 1629 1698 72 1805 335 680 253 230 1637 901 376 647 58705 Wait 48422 | . 53 81 . 76 17 . 79 . 24 . 1 32 46 4 48 47961 Move 20529 | 65 207 651 321 1529 1563 70 1600 320 639 217 219 1481 810 352 565 9920 Hop 91 | . 1 . 7 . 5 . 5 . . . . 12 3 1 9 48 Pick Up 77 | 2 3 2 . 6 8 1 8 1 1 4 . 7 6 3 5 20 Fast Attach 95 | 5 1 . 2 4 14 1 7 1 3 7 . 6 2 . . 42 Attach 36 | . 2 . . . 3 . 4 . 3 3 . 5 6 2 . 8 Detach 34 | 1 2 . 1 . 2 . 3 . 2 3 . . 2 . . 18 Swap 115 | . 1 8 . 3 3 . 16 4 . 1 4 17 5 . 1 52 Drop 108 | . 2 2 . 11 10 . 11 . 1 8 . 7 1 1 5 49 Fire 609 | 13 16 14 4 . . . 10 3 . . 4 33 . 1 3 508 Melee 284 | . . . . . 72 . 56 6 7 10 2 37 20 12 11 51 Ram . | . . . . . . . . . . . . . . . . . Kick . | . . . . . . . . . . . . . . . . . Crush . | . . . . . . . . . . . . . . . . . Escape Stasis 33 | . . . . . . . 6 . . . . . . . . 27 Rewire 1 | . . . . . . . . . . . . . . . . 1 Trap 2 | . . 1 . . 1 . . . . . . . . . . . Miscellaneous . | . . . . . . . . . . . . . . . . . Route ------- -11/Scrapyard -10/Materials (discovered 2 exits: [*Mat] / [*Sub]) -10/Subcaves -7/Recycling (discovered 2 exits: *Fac / *Scr) -7/Scraptown (discovered 2 exits: *Fac x2) -5/Factory (discovered 3 exits: *Fac x2 / *Upp) -5/Waste -5/Factory (discovered 5 exits: *Fac x4 / *Upp) -5/Upper Caves -5/Upper Caves -5/Zhirov -4/Proximity Caves -4/Factory (discovered 5 exits: *Res / Upp x2 / *Ext x2) -3/Research (discovered 2 exits: *Res / Tes) -2/Research (discovered 2 exits: *Qua x2) -2/Quarantine (discovered 2 exits: [*Sec] / *Frg) -2/Protoforge 0bPrime History --------- Turn | Location | Event 9 | -11/Scrapyard | Discovered new exit (range 13) 74 | -11/Scrapyard | Entered Materials 127 | -10/Materials | Discovered new exit (range 16) 269 | -10/Materials | Discovered new exit (range 8) 273 | -10/Materials | Entered Subcaves 274 | -10/Subcaves | Approached by a straggling Scientist 307 | -10/Subcaves | Build established: Mutant 387 | -10/Subcaves | Discovered new exit (range 11) 459 | -10/Subcaves | Shifting Twisted Machinery released Shrapnel Trap 463 | -10/Subcaves | Ambushed by Subdwellers from Twisted Machinery 476 | -10/Subcaves | Shifting Twisted Machinery released Battle Rifle 492 | -10/Subcaves | Shifting Twisted Machinery released Sub. Beam Cannon 653 | -10/Subcaves | Ambushed by Subdweller buried in earth 659 | -10/Subcaves | Entered Recycling 778 | -7/Recycling | Discovered new exit (range 8) 791 | -7/Recycling | Scanned before Scraplab entrance 796 | -7/Recycling | Entered Scraplab 799 | -7/Recycling | Discovered new exit (range 3) 800 | -7/Recycling | Entered Scraptown 811 | -7/Scraptown | Visited TADAMA 816 | -7/Scraptown | Heard Great Nut preacher, LISTEN AND RECITE! 816 | -7/Scraptown | Visited Cave Peace 823 | -7/Scraptown | Visited SPCMW 832 | -7/Scraptown | Visited CPS Storage 838 | -7/Scraptown | Visited Fellowship of the Rings 847 | -7/Scraptown | Visited Cyclists 852 | -7/Scraptown | Visited UFD Registry 852 | -7/Scraptown | Registered with UFD as "Matrixrider" 859 | -7/Scraptown | Entered Cyclist Reading Room 876 | -7/Scraptown | Visited LU-1G1's Boring Crew 888 | -7/Scraptown | Visited Cartography Club 908 | -7/Scraptown | Learned location of Recycling (-7) 908 | -7/Scraptown | Learned location of Upper Caves (-5) 908 | -7/Scraptown | Learned location of Zion (-7) 908 | -7/Scraptown | Learned location of Extension (-4) 908 | -7/Scraptown | Learned 8 Factory zone layouts 908 | -7/Scraptown | Learned 16 Factory zone layouts 908 | -7/Scraptown | Learned 4 Access zone layouts 908 | -7/Scraptown | Learned 4 Mines zone layouts 908 | -7/Scraptown | Learned 8 Lower Caves zone layouts 908 | -7/Scraptown | Learned 4 Recycling zone layouts 908 | -7/Scraptown | Learned 16 Lower Caves zone layouts 908 | -7/Scraptown | Learned 8 Proximity Caves zone layouts 908 | -7/Scraptown | Learned 12 Proximity Caves zone layouts 908 | -7/Scraptown | Learned 24 Proximity Caves zone layouts 908 | -7/Scraptown | Learned location of 1 exit from Research 908 | -7/Scraptown | Learned location of 3 exits from Lower Caves 908 | -7/Scraptown | Learned location of 2 exits from Proximity Caves 916 | -7/Scraptown | Found Deep Structural Scanner 928 | -7/Scraptown | Visited DA-N13 Charitable Foundation 932 | -7/Scraptown | Found DCF Scrap (26 items) 985 | -7/Scraptown | Scanned Subdweller tech in exchange for log data 986 | -7/Scraptown | Learned Research trap positions 1048 | -7/Scraptown | Visited Chapter 10 1135 | -7/Scraptown | Visited Sword Containment 1140 | -7/Scraptown | Found Prototype Slashing Weapon 1140 | -7/Scraptown | Identified Companion Sword 1149 | -7/Scraptown | Visited Abandonware Association 1153 | -7/Scraptown | Learned abandonware demo "REVENGE.EXE" 1153 | -7/Scraptown | Learned abandonware demo "TRNCOAT.EXE" 1163 | -7/Scraptown | Visited Scrapoid Pod Storage 1170 | -7/Scraptown | Visited Botcube Research 1176 | -7/Scraptown | Visited Analyses Database 1185 | -7/Scraptown | Visited Science Guys 1364 | -7/Scraptown | Discovered new exit (range 11) 1505 | -7/Scraptown | Met Optimus 1505 | -7/Scraptown | Accepted into 0bPrime 1529 | -7/Scraptown | Discovered new exit (range 5) 1530 | -7/Scraptown | Entered Factory 1530 | -5/Factory | Evolved 10 slots: Power x1, Propulsion x4, Utility x5 1531 | -5/Factory | Identified exit to Upper Caves 1531 | -5/Factory | Identified exit to Factory 1569 | -5/Factory | Loaded intel: 8 recycling unit locations 1849 | -5/Factory | Learned location of Protoforge (-2) 2132 | -5/Factory | Build established: Hacker-Scout 2239 | -5/Factory | Manually triggered Chute Trap 2239 | -5/Factory | Sucked down chute 2239 | -5/Factory | Entered Waste 2240 | -5/Waste | Met a frightened Derelict 2242 | -5/Waste | Spotted C-40 Crusher 2245 | -5/Waste | Spotted C-40 Crusher 2245 | -5/Waste | Spotted C-40 Crusher 2246 | -5/Waste | Spotted C-40 Crusher 2253 | -5/Waste | Spotted C-40 Crusher 2254 | -5/Waste | EMP discharged 2254 | -5/Waste | System corruption reached 10% 2259 | -5/Waste | Discovered new exit (range 12) 2262 | -5/Waste | Identified exit to Factory 2262 | -5/Waste | Entered Factory 2532 | -5/Factory | Loaded intel: 8 recycling unit locations 2732 | -5/Factory | Discovered exit to Factory (range 15) 2802 | -5/Factory | Spotted B-75 Beast 2862 | -5/Factory | Search patrols dispatched 2909 | -5/Factory | Discovered exit to Factory (range 8) 2959 | -5/Factory | Repaired Nuclear Pulse Array+ 2979 | -5/Factory | Discovered exit to Upper Caves (range 15) 3037 | -5/Factory | Entered Upper Caves 3075 | -5/Upper Caves | Encountered a Warlord checkpoint 3099 | -5/Upper Caves | Identified exit to Upper Caves 3156 | -5/Upper Caves | Entered another Upper Caves area 3165 | -5/Upper Caves | Attracted the attention of an 0b10 outpost 3180 | -5/Upper Caves | Encountered a Warlord checkpoint 3206 | -5/Upper Caves | Found Alien Artifact 3206 | -5/Upper Caves | Identified Core Expander 3206 | -5/Upper Caves | Installed Core Expander, added new Utility slot 3262 | -5/Upper Caves | Discovered new exit (range 10) 3265 | -5/Upper Caves | Identified exit to Zhirov 3379 | -5/Upper Caves | Entered Zhirov 3379 | -5/Zhirov | Discovered new exit (range 3) 3384 | -5/Zhirov | Met Zhirov 3389 | -5/Zhirov | Learned location of Quarantine (-2) 3389 | -5/Zhirov | Learned location of Testing (-3) 3389 | -5/Zhirov | Learned location of Command (-1) 3392 | -5/Zhirov | Zhirov requested help retrieving the SGEMP Prototype 3396 | -5/Zhirov | Found Alien Artifact 3396 | -5/Zhirov | Identified Integrated Reactor 3396 | -5/Zhirov | Installed Integrated Reactor, increased core energy generation (+10) 3403 | -5/Zhirov | Found Alien Artifact 3483 | -5/Zhirov | Identified exit to Proximity Caves 3483 | -5/Zhirov | Entered Proximity Caves 3550 | -4/Proximity Caves | Learned Extension emergency access door positions 3550 | -4/Proximity Caves | Learned Research emergency access door positions 3563 | -4/Proximity Caves | Entered Factory 3563 | -4/Factory | Evolved 2 slots: Propulsion x1, Utility x1 3564 | -4/Factory | Identified exit to Upper Caves 3564 | -4/Factory | Identified exit to Extension 3569 | -4/Factory | Identified Transdimensional Reconstructor 3713 | -4/Factory | Loaded intel: 8 recycling unit locations 3735 | -4/Factory | Discovered exit to Extension (range 16) 3881 | -4/Factory | Garrison activated, responded to threat 3893 | -4/Factory | Discovered new exit (range 12) 4087 | -4/Factory | Central database locked down 4142 | -4/Factory | Spotted B-86 Titan 4152 | -4/Factory | Identified exit to Research 4152 | -4/Factory | Entered Research 4152 | -3/Research | Evolved 2 slots: Utility x2 4153 | -3/Research | Identified exit to Testing 4154 | -3/Research | Identified exit to Research 4155 | -3/Research | Loaded intel: 100 trap records 4183 | -3/Research | Lost 3 parts (1p1n1u) 4313 | -3/Research | Loaded intel: 5 recycling unit locations 4340 | -3/Research | Repaired Imp. Medium Armor Plating 4444 | -3/Research | Entered another Research area 4444 | -2/Research | Evolved 2 slots: Propulsion x1, Utility x1 4453 | -2/Research | Identified exit to Quarantine 4560 | -2/Research | Entered Quarantine 4691 | -2/Quarantine | Found Alien Artifact 4702 | -2/Quarantine | Found Alien Artifact 4716 | -2/Quarantine | Spotted Fortress 4732 | -2/Quarantine | Discovered new exit (range 5) 4732 | -2/Quarantine | Discovered new exit (range 6) 4732 | -2/Quarantine | Identified exit to Protoforge 4774 | -2/Quarantine | Entered Protoforge 4822 | -2/Protoforge | Watched by a mysterious "MATRIX" hacker 4822 | -2/Protoforge | Identified exit to Access 4827 | -2/Protoforge | Spotted Hotshot 4827 | -2/Protoforge | Spotted Hotshot 4828 | -2/Protoforge | Superfortress began startup sequence 4830 | -2/Protoforge | Spotted Hotshot 4834 | -2/Protoforge | Spotted Hotshot 4881 | -2/Protoforge | Spotted Hotshot 4883 | -2/Protoforge | Spotted Hotshot 4918 | -2/Protoforge | Spotted AP7-3 4924 | -2/Protoforge | Spotted AP7-3 4924 | -2/Protoforge | Spotted Overlord 4925 | -2/Protoforge | Spotted EXE-6 4925 | -2/Protoforge | Spotted SKR-2 4925 | -2/Protoforge | Spotted EXE-6 4926 | -2/Protoforge | Spotted SKR-2 4926 | -2/Protoforge | Spotted SKR-2 4936 | -2/Protoforge | UFD initiated attack on Protoforge (Readiness: Maximal) 4936 | -2/Protoforge | Loaded intel: 3 recycling unit locations 4947 | -2/Protoforge | Spotted EXE-6 4947 | -2/Protoforge | Spotted EXE-6 4972 | -2/Protoforge | Optimus greeted in Protoforge 4979 | -2/Protoforge | Identified Subatomic Replicator 4979 | -2/Protoforge | Used Subatomic Replicator to create Alien Artifact 4984 | -2/Protoforge | Identified Dimensional Node Initializer 4984 | -2/Protoforge | Initialized slip node 5002 | -2/Protoforge | Identified Supercharged TR 5002 | -2/Protoforge | Warped through subspace to slip node 5003 | -2/Protoforge | Optimus attacked Superfortress 5007 | -2/Protoforge | Spotted Striker 5015 | -2/Protoforge | Found Prototype Processor 5015 | -2/Protoforge | Identified Exp. Core Analyzer 5017 | -2/Protoforge | Spotted Executioner 5019 | -2/Protoforge | Spotted Immortal 5035 | -2/Protoforge | Found Prototype Device 5035 | -2/Protoforge | Identified Exp. Force Field 5038 | -2/Protoforge | Found Prototype Device 5038 | -2/Protoforge | Identified Cep. Matter Streamer 5043 | -2/Protoforge | Found Prototype Device 5043 | -2/Protoforge | Identified Cep. Antimissile System 5046 | -2/Protoforge | Found Prototype Power Core 5046 | -2/Protoforge | Identified Cep. Zero-point Core 5048 | -2/Protoforge | Found Prototype Device 5048 | -2/Protoforge | Identified Thermal Barrier 5051 | -2/Protoforge | Lost 29 allies 5094 | -2/Protoforge | Found Prototype Processor 5094 | -2/Protoforge | Identified Exp. Melee Analysis Suite 5109 | -2/Protoforge | Found Prototype Processor 5109 | -2/Protoforge | Identified Exp. Armor Integrity Analyzer 5123 | -2/Protoforge | Forge Plexus network access discovered 5145 | -2/Protoforge | Spotted Decapitator 5149 | -2/Protoforge | Spotted Decapitator 5150 | -2/Protoforge | Spotted Decapitator 5151 | -2/Protoforge | Spotted Decapitator 5153 | -2/Protoforge | Spotted Decapitator 5196 | -2/Protoforge | Spotted Immortal 5197 | -2/Protoforge | Spotted Immortal 5387 | -2/Protoforge | Spotted Executioner 5407 | -2/Protoforge | Build established: Scavenger-Scout 5412 | -2/Protoforge | Found Prototype Processor 5412 | -2/Protoforge | Identified Exp. Targeting Computer 5417 | -2/Protoforge | Found Prototype Device 5417 | -2/Protoforge | Identified Adv. Kinecellerator 5428 | -2/Protoforge | Lost 5 allies 5436 | -2/Protoforge | UFD reported confirmed Drillbomb installation 5445 | -2/Protoforge | Spotted Executioner 5684 | -2/Protoforge | Found Cep. XC Strikerail 5688 | -2/Protoforge | Spotted Executioner 5781 | -2/Protoforge | Lost 7 allies 5852 | -2/Protoforge | Spotted Striker 5854 | -2/Protoforge | Spotted Striker 5879 | -2/Protoforge | Found Exp. Core Analyzer 5882 | -2/Protoforge | Found Exp. Targeting Computer 5903 | -2/Protoforge | Lost 3 allies 5924 | -2/Protoforge | Spotted Executioner 5929 | -2/Protoforge | Spotted Executioner 5991 | -2/Protoforge | Lost 3 allies 6036 | -2/Protoforge | Found Exp. Active Sensor Suite 6038 | -2/Protoforge | Found Prototype Device 6038 | -2/Protoforge | Identified Exp. EM Shield 6040 | -2/Protoforge | Found Prototype Device 6040 | -2/Protoforge | Identified Exp. Transmission Jammer 6058 | -2/Protoforge | Lost 3 allies 6137 | -2/Protoforge | Spotted Executioner 6169 | -2/Protoforge | Lost 3 allies 6210 | -2/Protoforge | Spotted Executioner 6237 | -2/Protoforge | Spotted Executioner 6237 | -2/Protoforge | Spotted Striker 6474 | -2/Protoforge | Spotted Striker 6478 | -2/Protoforge | Spotted Striker 6484 | -2/Protoforge | Destroyed Striker 6514 | -2/Protoforge | UFD reported confirmed Drillbomb installation 6582 | -2/Protoforge | Spotted Executioner 6582 | -2/Protoforge | Spotted Executioner 6582 | -2/Protoforge | Spotted Striker 6669 | -2/Protoforge | Spotted Executioner 6858 | -2/Protoforge | UFD reported confirmed Drillbomb installation 6913 | -2/Protoforge | Spotted Executioner 6914 | -2/Protoforge | Spotted Executioner 6914 | -2/Protoforge | Spotted Striker 6924 | -2/Protoforge | Spotted Striker 6926 | -2/Protoforge | Spotted Striker 6948 | -2/Protoforge | Spotted Executioner 6948 | -2/Protoforge | Spotted Executioner 6954 | -2/Protoforge | UFD reported confirmed Drillbomb installation 6954 | -2/Protoforge | P-80 Master assimilated allied Lugger 077 6984 | -2/Protoforge | Lost 7 allies 7117 | -2/Protoforge | Spotted Striker 7118 | -2/Protoforge | Spotted Executioner 7166 | -2/Protoforge | Spotted Striker 7214 | -2/Protoforge | Spotted Executioner 7214 | -2/Protoforge | Spotted Executioner 7219 | -2/Protoforge | Lost 5 allies 7219 | -2/Protoforge | Found Cep. Weapon Articulator 7364 | -2/Protoforge | UFD reported confirmed Drillbomb installation 7419 | -2/Protoforge | Spotted 02F32-K 7422 | -2/Protoforge | Spotted Executioner 7424 | -2/Protoforge | Spotted Striker 7431 | -2/Protoforge | Destroyed Executioner 7447 | -2/Protoforge | Spotted Executioner 7452 | -2/Protoforge | UFD reported confirmed Drillbomb installation 7456 | -2/Protoforge | Found Adv. Kinecellerator 7488 | -2/Protoforge | Spotted B-90 Cyclops 7498 | -2/Protoforge | Lost 6 allies 7499 | -2/Protoforge | Spotted Hotshot 7503 | -2/Protoforge | Spotted Striker 7505 | -2/Protoforge | Spotted Striker 7506 | -2/Protoforge | Spotted Hotshot 7519 | -2/Protoforge | Destroyed Striker 7534 | -2/Protoforge | Spotted Striker 7565 | -2/Protoforge | Lost 3 allies 7565 | -2/Protoforge | P-80 Master assimilated allied 02FGR-D 7572 | -2/Protoforge | Spotted Striker 7577 | -2/Protoforge | Spotted Striker 7651 | -2/Protoforge | Spotted Striker 7667 | -2/Protoforge | Spotted Striker 7698 | -2/Protoforge | Spotted Striker 7745 | -2/Protoforge | Lost 6 allies 7759 | -2/Protoforge | Spotted Executioner 7788 | -2/Protoforge | UFD reported confirmed Drillbomb installation 7805 | -2/Protoforge | Spotted V281-x 7805 | -2/Protoforge | Spotted V482-a 7837 | -2/Protoforge | Spotted Decapitator 7837 | -2/Protoforge | Spotted Decapitator 7912 | -2/Protoforge | Spotted Executioner 7915 | -2/Protoforge | Destroyed Executioner 7927 | -2/Protoforge | Found Exp. Core Analyzer 7935 | -2/Protoforge | Spotted Executioner 7944 | -2/Protoforge | Lost 3 allies 7968 | -2/Protoforge | Destroyed Executioner 7978 | -2/Protoforge | Spotted Striker 7979 | -2/Protoforge | Spotted Striker 7989 | -2/Protoforge | Spotted Executioner 8010 | -2/Protoforge | Spotted Striker 8011 | -2/Protoforge | Spotted Striker 8016 | -2/Protoforge | Destroyed Striker 8076 | -2/Protoforge | Spotted Striker 8087 | -2/Protoforge | Lost 5 allies 8115 | -2/Protoforge | Spotted Executioner 8125 | -2/Protoforge | Spotted Executioner 8127 | -2/Protoforge | P-80 Master assimilated allied N3-UND(E) 8170 | -2/Protoforge | Spotted Striker 8205 | -2/Protoforge | Destroyed Executioner 8229 | -2/Protoforge | Lost 3 allies 8231 | -2/Protoforge | Spotted Executioner 8248 | -2/Protoforge | Spotted Striker 8257 | -2/Protoforge | Spotted Executioner 8313 | -2/Protoforge | Destroyed 7 combat bots 8328 | -2/Protoforge | Lost 18 allies 8411 | -2/Protoforge | Build established: Scavenger-Sprinter 8491 | -2/Protoforge | Spotted Striker 8492 | -2/Protoforge | Spotted Striker 8501 | -2/Protoforge | Destroyed Striker 8505 | -2/Protoforge | Spotted Executioner 8505 | -2/Protoforge | Destroyed Executioner 8541 | -2/Protoforge | Spotted Executioner 8554 | -2/Protoforge | Triborg destroyed during the operation 8554 | -2/Protoforge | Optimus emerged from Triborg 8585 | -2/Protoforge | Lost 6 allies 9226 | -2/Protoforge | Spotted Executioner 9227 | -2/Protoforge | Spotted Striker 9270 | -2/Protoforge | Spotted Striker 9276 | -2/Protoforge | Destroyed Striker 9278 | -2/Protoforge | Spotted Striker 9279 | -2/Protoforge | Destroyed Striker 9282 | -2/Protoforge | Destroyed Striker 9320 | -2/Protoforge | Spotted Executioner 9327 | -2/Protoforge | UFD reported confirmed Drillbomb installation 9400 | -2/Protoforge | Spotted Striker 9404 | -2/Protoforge | Spotted Striker 9406 | -2/Protoforge | Spotted Executioner 9408 | -2/Protoforge | Spotted Striker 9420 | -2/Protoforge | Destroyed Striker 9426 | -2/Protoforge | Spotted Executioner 9492 | -2/Protoforge | Spotted Striker 9501 | -2/Protoforge | Destroyed Striker 9559 | -2/Protoforge | Lost 5 allies 9564 | -2/Protoforge | Spotted Executioner 9568 | -2/Protoforge | Destroyed Executioner 9589 | -2/Protoforge | Destroyed 8 combat bots 9594 | -2/Protoforge | Spotted Striker 9595 | -2/Protoforge | Spotted Striker 9600 | -2/Protoforge | Spotted Executioner 9633 | -2/Protoforge | Build established: Scavenger-Scout 9665 | -2/Protoforge | Spotted Executioner 9700 | -2/Protoforge | Found Cep. Variable Chargecaster 9702 | -2/Protoforge | Found Cep. Variable Chargecaster 10364 | -2/Protoforge | Spotted Striker 11648 | -2/Protoforge | Build established: Scavenger-Assassin 11791 | -2/Protoforge | Forged Quantum Companion 12380 | -2/Protoforge | Build established: Scavenger-Scout 13082 | -2/Protoforge | Spotted Executioner 13083 | -2/Protoforge | Spotted Executioner 13096 | -2/Protoforge | Spotted Striker 13098 | -2/Protoforge | Spotted Striker 13098 | -2/Protoforge | Spotted Striker 13504 | -2/Protoforge | Build established: Scavenger-Assassin 13884 | -2/Protoforge | Build established: Scavenger-Scout 15052 | -2/Protoforge | Spotted Executioner 15069 | -2/Protoforge | Spotted Executioner 15069 | -2/Protoforge | Spotted Striker 15071 | -2/Protoforge | Spotted Executioner 15103 | -2/Protoforge | Lost 5 allies 42228 | -2/Protoforge | UFD reported confirmed Drillbomb installation 54649 | -2/Protoforge | Spotted Executioner 54649 | -2/Protoforge | Spotted Executioner 54652 | -2/Protoforge | Spotted Executioner 54652 | -2/Protoforge | Spotted Executioner 54692 | -2/Protoforge | Lost 4 allies 54803 | -2/Protoforge | Spotted Executioner 54854 | -2/Protoforge | Spotted Striker 54889 | -2/Protoforge | Spotted Striker 54920 | -2/Protoforge | Spotted Striker 54921 | -2/Protoforge | Destroyed Striker 54961 | -2/Protoforge | Spotted Striker 54982 | -2/Protoforge | Lost 27 allies 55193 | -2/Protoforge | Spotted Executioner 55212 | -2/Protoforge | Spotted Striker 55235 | -2/Protoforge | Spotted Executioner 55255 | -2/Protoforge | Spotted Striker 55345 | -2/Protoforge | Spotted Striker 55358 | -2/Protoforge | Spotted Striker 55388 | -2/Protoforge | Lost 5 allies 55439 | -2/Protoforge | Spotted Striker 55514 | -2/Protoforge | Spotted Executioner 55522 | -2/Protoforge | Destroyed 8 combat bots 55533 | -2/Protoforge | Spotted Striker 55533 | -2/Protoforge | Spotted Executioner 55533 | -2/Protoforge | Spotted Striker 55533 | -2/Protoforge | Spotted Executioner 55568 | -2/Protoforge | Lost 4 allies 55591 | -2/Protoforge | Found Exp. Targeting Computer 55636 | -2/Protoforge | Spotted Striker 55638 | -2/Protoforge | Spotted Striker 57475 | -2/Protoforge | UFD reported confirmed Drillbomb installation 57476 | -2/Protoforge | UFD began Drillbomb countdown 57488 | -2/Protoforge | Spotted Executioner 57488 | -2/Protoforge | Spotted Executioner 57491 | -2/Protoforge | P-80 Master assimilated allied VG-7LV(j) 57576 | *** | Defending 0bPrime! Last Messages --------------- 57492_ N-04 Retriever collects Ovr. Huge Scrapsphere. 57492_ Slug penetrates VG-7LV(j). 57526_ 0bP_NET: T-50! Anyone not out of the danger zone better hurry, this is too big a moment to extend the escape window! 57530_ The unstable cave ceiling collapses. 57566_ 0bP_NET: Hello everyone, and welcome to the end of MC's control over the Protoforge! 57567_ 0bP_NET: In T-9 this fine piece of machinery is all ours for the steep price of... many UFD lives. 57568_ 0bP_NET: But with it we will not only rebuild, we will wrest full control over 0b1 for ourselves! 57569_ 0bP_NET: What better way to punctuate our success than a blaze of glory, directed away from ourselves, of course. 57570_ 0bP_NET: Time for our final countdown to an explosive victory... 57571_ 0bP_NET: 5! 57572_ 0bP_NET: 4! 57573_ 0bP_NET: 3! 57574_ 0bP_NET: If you're in the wrong place at the wrong time, the wrong time being in just a moment, I'm sorry but prepare to die. 57575_ 0bP_NET: Otherwise, enjoy the show! Map ----- +----------------------------------------------------+ | %% %*%%%% %%% % % %% %%%"% | | % % % % %% %% # | | % % % % % % %% ## | | % % ## | | %% ### | | % ### | | % " " % " #### # | | ##############################"""#"############ # | | ##""""""""""""######"""""# " ""## #########? | | ########################## % "##########??? | | ########################"" ""########??? | | ????????????????????####"" ""####??????? | | ????????????????????####"" ""####??????? | | ????????????????????####"Y Y"####??????? | | ????????????????????####"" ""####??????? | | ????????????????????####"" ""####??????? | | ????????????????????####"" ""####??????? | | ????????????????????######" "######??????? | | ????????????????????###### #"####??????? | | ????????????????????########"""Y"""##""####??????? | | ????????????????????###### #"""""""### ####??????? | | ??????????????????????###" ########### "#????????? | | ?????????????????????##;## ########### ##????????? | | ?????????????????????#; "" "########## #?????????? | | ????????????????????## "" "########## #?????????? | | ????????????????????# ;""@ "#????????# #?????????? | | ???????????????????# ## ##???????# #?????????? | | ???????????????????##?# " "";#???????# #?????????? | | ??????????????????????########???????# #?????????? | | ?????????????????????????????????????# #?????????? | | ?????????????????????????????????????###?????????? | | ?????????????????????????????????????????????????? | | ?????????????????????????????????????????????????? | | ?????????????????????????????????????????????????? | | ?????????????????????????????????????????????????? | | ?????????????????????????????????????????????????? | | ?????????????????????????????????????????????????? | | ?????????????????????????????????????????????????? | | ?????????????????????????????????????????????????? | | ?????????????????????????????????????????????????? | | ?????????????????????????????????????????????????? | | ?????????????????????????????????????????????????? | | ?????????????????????????????????????????????????? | | ?????????????????????????????????????????????????? | | ?????????????????????????????????????????????????? | | ?????????????????????????????????????????????????? | | | | | | | | | +----------------------------------------------------+ Best States ------------- Heat Dissipation 80 Energy Generation 58 Energy Capacity 270 Matter Stores 300 Matter Capacity 300 Sight Range 23 Robot Scan Range 20 Terrain Scan Density 10 ECM Strength 1 Jamming Range 16 EM Shielding 4 Armor Coverage 375 Resistance: TH 50 Power Shielding 33 Weapon Shielding 90 Phase Shifting 15 Evasion (%) 95 Targeting Accuracy 54 Melee Accuracy 6 Target Analysis 8 Core Analysis 12 Armor Integrity Analysis 50 Recoil Reduction 2 Kinecelleration 50 Offensive Hacking 22 Defensive Hacking 20 Item Schematics ----------------- Assault Drone Bay | -5/Zhirov | Free Exp. Heat Sink | -5/Zhirov | Free Exp. Optical Array | -5/Zhirov | Free Imp. Arc Thrower | -5/Zhirov | Free Hvy. Hardcell Cannon | -2/Protoforge | Archive Robot Schematics ------------------ X-87 Electro | -2/Protoforge | Archive Fabricated ------------ Nothing Repaired ---------- Nuclear Pulse Array | 70% | -5/Factory Imp. Medium Armor Plating | 7% | -3/Research Studied --------- Mic. Fission Core | -5/Factory | Hacked Nuclear Pulse Array | -5/Factory | Hacked Field Propulsion Drive | -4/Factory | Hacked Cesium-ion Thruster | -4/Factory | Hacked Field Propulsion Array | -4/Factory | Hacked Mic. Antimatter Reactor | -3/Research | Hacked Impulse Thruster | -3/Research | Hacked Lgt. Ion Engine | -2/Quarantine | Hacked Alien Tech Used ----------------- Core Expander Integrated Reactor Subatomic Replicator Dimensional Node Initializer Supercharged TR Achievements -------------- Dominance Asserted Inventory(Loot) Perfect Aim Red Leader Sniper Challenges ------------ None Game ------ Seed GravityHeatDetonator Manual? 0 Play Time 04:23:22 Cumulative 344.5 hours Start 2026.07.15 @ 10:54:05 End 2026.07.15 @ 23:41:33 Sessions 9 Manual Loads 0 Difficulty Rogue Special Mode None Game No. 218 Rogue 214 Adventurer 4 Explorer 0 Win Type 9 Total 102 Types 83/0/12/2/1/1/1/0/0/2 Lore% 91 Gallery% 73 Achievement% 72 Wizard Run 0 Options --------- Layout 0 ASCII 0 Keyboard 1 Movement Vi Keybinds 1 Fullscreen 2 Font 18/SmallcapsGlow Map View 76x50 Zoom Use 0% Tactical HUD 1 Map Filters NONE Filters NONE Steam 1 RUN: c746dc85-9e6c-4543-a821-dddab8068ab4